bitfinex/quotes_ETHUSD_20240711
["timestamp","ask_amount","ask_price","bid_price","bid_amount"]
[1720704654977,3.13547,3189.4,3188.0,2.44212302]
[1720704655178,3.13547,3189.4,3188.1,0.26801557]
[1720704655179,3.449017,3189.4,3188.1,0.26801557]
[1720704655382,3.449017,3189.4,3188.2,0.06272303]
[1720704655613,2.541,3190.3,3188.3,5.50811343]
[1720704655910,2.541,3190.3,3188.5,5.44525]
[1720704655911,4.22051357,3190.2,3188.5,5.44525]
[1720704656057,3.13474,3190.1,3188.6,0.06270943]
[1720704656258,3.702324,3190.1,3188.8,2.3984]
[1720704656456,3.13483,3190.0,3188.8,2.3984]
[1720704656658,0.567574,3190.1,3188.8,2.3984]
[1720704656981,0.567574,3190.1,3188.9,0.06270587]
[1720704657303,3.13443,3190.4,3188.9,0.06270587]
[1720704657508,3.13431,3190.5,3189.0,2.2893]
[1720704657685,4.22012506,3190.4,3189.1,0.06269937]
[1720704657885,3.13431,3190.5,3189.1,0.06269937]
[1720704658193,3.13462,3190.2,3189.2,0.54877694]
[1720704658361,3.13462,3190.2,3189.0,2.2893]
[1720704658798,0.338841,3190.4,3189.0,2.2893]
[1720704658799,3.13505,3189.8,3189.0,2.2893]
[1720704659293,3.473301,3190.4,3189.0,2.2893]
[1720704659294,3.13492,3189.9,3189.0,2.2893]
[1720704659506,3.1351,3189.7,3189.0,2.2893]
[1720704659683,0.31351,3189.6,3189.0,2.2893]
[1720704659855,3.44871,3189.6,3189.0,2.2893]
[1720704660060,3.44871,3189.6,3188.5,2.2784]
[1720704660061,3.13536,3189.5,3188.5,2.2784]
[1720704660495,3.13554,3189.3,3188.5,2.2784]
[1720704660802,0.31351,3189.6,3188.5,2.2784]
[1720704660997,2.541,3190.3,3188.6,0.22784]
[1720704661161,3.13556,3189.3,3188.5,2.2784]
[1720704661357,3.13559,3189.2,3188.5,2.2784]
[1720704662396,3.13541,3189.4,3188.5,2.2784]
[1720704662597,3.13531,3189.5,3188.5,2.2784]
[1720704662808,3.13501,3189.8,3188.5,2.2784]
[1720704663007,3.13501,3189.8,3188.6,0.22784]
[1720704663008,1.39943506,3189.7,3188.6,0.22784]
[1720704663220,0.313501,3189.7,3188.6,0.22784]
[1720704663372,3.13464,3190.2,3188.6,0.22784]
[1720704663597,1.08579232,3190.1,3188.6,0.22784]
[1720704663895,1.08579232,3190.0,3188.6,0.29055152]
[1720704664097,3.13461,3190.2,3188.9,2.2822]
[1720704664310,1.08569891,3190.1,3189.0,0.06270364]
[1720704664616,1.08569891,3190.1,3188.1,2.4628]
[1720704664617,3.13546,3189.4,3188.1,2.4628]
[1720704664767,3.1356,3189.2,3188.1,2.4628]
[1720704664968,3.13548,3189.3,3188.1,2.4628]
[1720704665283,0.313548,3189.2,3188.2,0.68528]
[1720704665592,3.13568,3189.1,3188.2,0.68528]
[1720704665770,0.65256501,3189.6,3188.1,2.4628]
[1720704665771,3.13557,3189.3,3188.1,2.4628]
[1720704665976,3.78778501,3189.6,3188.1,2.4628]
[1720704666206,1.08602844,3189.5,3188.2,0.06272312]
[1720704666370,4.22142844,3189.4,3188.1,2.4628]
[1720704666568,1.08602844,3189.3,3188.1,2.4628]
[1720704666771,3.1354,3189.4,3188.1,3.461765]
[1720704666772,1.50817128,3189.2,3188.1,3.461765]
[1720704667070,1.08602702,3189.1,3188.1,2.4628]
[1720704667273,3.13568,3189.1,3188.1,2.4628]
[1720704667469,3.13591,3188.9,3188.1,2.4628]
[1720704667701,3.13591,3188.9,3186.9,3.1378]
[1720704667702,3.13648,3188.3,3187.2,2.4395]
[1720704667906,1.08608204,3188.2,3187.2,2.4395]
[1720704668209,3.78887501,3188.5,3187.2,2.4395]
[1720704668210,0.4222562,3188.1,3187.2,2.4395]
[1720704668375,0.65256501,3188.7,3187.3,0.06273623]
[1720704668608,1.08626103,3188.6,3187.4,0.06273332]
[1720704668812,3.13591,3188.9,3187.4,0.06273332]
[1720704668813,0.65256501,3188.9,3187.5,2.3316]
[1720704668967,1.08616659,3188.8,3187.6,0.0627266]
[1720704669168,0.65256501,3189.1,3187.8,3.13695]
[1720704669483,0.65256501,3189.1,3187.9,0.546855]
[1720704669484,4.22193056,3189.0,3187.9,0.546855]
[1720704669682,4.22193056,3189.0,3187.7,2.3316]
[1720704669683,3.13626,3188.6,3187.7,2.3316]
[1720704669865,3.13619,3188.6,3187.7,2.3316]
[1720704670066,3.13629,3188.5,3187.7,2.3316]
[1720704670390,3.13619,3188.6,3187.7,2.3316]
[1720704670391,3.13666,3188.1,3187.7,2.3316]
[1720704670767,3.13666,3188.1,3186.8,2.4071]
[1720704670967,1.71372761,3188.0,3186.8,3.400621]
[1720704671173,1.71372761,3188.0,3186.8,2.4071]
[1720704671174,3.13702,3187.8,3186.8,2.4071]
[1720704671412,3.13722,3187.6,3186.8,2.4071]
[1720704671577,3.13722,3187.6,3186.0,3.13867]
[1720704671578,1.08659728,3187.5,3185.5,5.44852]
[1720704671784,3.13782,3187.0,3185.5,5.4485]
[1720704672304,0.97884751,3187.4,3185.3,6.26934]
[1720704672305,3.13812,3186.7,3185.7,2.3093]
[1720704672607,3.13825,3186.5,3185.7,2.3093]
[1720704672811,0.313812,3186.6,3185.7,2.3093]
[1720704672994,5.42133753,3187.4,3185.8,0.06276609]
[1720704672995,0.65256501,3187.4,3185.8,0.06276609]
[1720704673203,0.97884751,3187.5,3185.9,3.13875]
[1720704673204,3.13734,3187.5,3185.9,3.13875]
[1720704673404,3.1376,3187.2,3185.7,5.44823]
[1720704673571,3.1376,3187.2,3185.8,0.06276285]
[1720704673913,3.13718,3187.6,3185.9,2.3093]
[1720704674203,1.27989501,3188.0,3186.3,2.3093]
[1720704674368,3.13755,3187.2,3186.3,2.3093]
[1720704674567,3.13703,3187.8,3186.3,2.3093]
[1720704674768,3.6869,3187.9,3186.3,2.3093]
[1720704674769,3.13692,3187.9,3186.3,2.3093]
[1720704674991,3.13716,3187.6,3186.3,2.3093]
[1720704675189,3.13781,3187.0,3186.3,2.3093]
[1720704675434,3.13774,3187.1,3186.3,2.3093]
[1720704675633,3.78992501,3187.4,3186.3,2.3093]
[1720704675634,3.13743,3187.4,3186.3,2.3093]
[1720704675925,0.313716,3187.5,3186.3,2.3093]
[1720704676641,3.13757,3187.2,3186.3,2.3093]
[1720704676824,0.313757,3187.1,3185.2,1.48]
[1720704677006,3.137,3187.8,3185.4,2.3679]
[1720704677007,3.13798,3186.8,3185.4,2.3679]
[1720704677209,3.13811,3186.7,3185.4,2.3679]
[1720704677530,2.541,3186.9,3185.4,2.3679]
[1720704677907,3.13826,3186.5,3185.4,2.3679]
[1720704678112,3.13847,3186.3,3185.4,2.3679]
[1720704678327,0.313847,3186.2,3185.4,2.3679]
[1720704678533,2.541,3186.9,3185.4,2.3679]
[1720704678534,3.13818,3186.6,3185.4,2.3679]
[1720704678826,3.13795,3186.8,3185.4,2.3679]
[1720704679030,3.61713002,3187.6,3185.4,2.3679]
[1720704679031,3.13756,3187.2,3185.4,5.50715]
[1720704679331,2.541,3187.4,3185.4,5.50715]
[1720704679332,3.13785,3186.9,3185.4,5.50713]
[1720704679537,3.13829,3186.5,3185.4,2.3679]
[1720704679711,3.13772,3187.1,3185.5,0.06278028]
[1720704680034,3.13772,3187.1,3185.5,3.13921]
[1720704680249,2.541,3187.4,3185.4,2.3679]
[1720704680250,3.13756,3187.2,3185.4,2.3679]
[1720704680535,3.13853,3186.3,3185.4,2.3679]
[1720704680749,3.13855,3186.2,3185.4,2.3679]
[1720704680897,3.766348,3186.1,3185.4,2.3679]
[1720704681613,0.627708,3186.1,3185.4,2.3679]
[1720704681811,5.48362,3186.5,3184.8,2.3954]
[1720704682022,3.13935,3185.4,3184.8,2.3954]
[1720704682351,3.13991,3184.8,3183.7,2.3954]
[1720704683140,5.68061,3185.1,3183.7,2.3954]
[1720704683297,3.13961,3185.1,3183.7,2.3954]
[1720704683502,3.453681,3185.0,3183.7,2.949057]
[1720704683830,3.13981,3184.9,3183.7,2.949057]
[1720704683994,0.313961,3185.0,3183.7,2.3954]
[1720704684203,3.13953,3185.2,3183.7,2.3954]
[1720704684516,8.01337,3186.1,3184.2,3.14043]
[1720704684816,2.0787,3186.3,3183.9,2.3094]
[1720704684817,3.45328,3186.3,3184.6,3.14004]
[1720704685024,3.13837,3186.4,3184.8,3.13987]
[1720704685207,3.138,3186.8,3185.1,3.1396]
[1720704685415,0.5679,3186.7,3185.2,0.31396]
[1720704685599,2.541,3186.9,3185.2,0.31396]
[1720704685600,3.13843,3186.3,3185.2,0.31396]
[1720704685803,5.99372,3186.9,3184.7,2.4385]
[1720704686012,3.13882,3186.0,3184.7,2.4385]
[1720704686454,3.13852,3186.3,3184.7,5.57844]
[1720704686601,3.13852,3186.3,3184.8,0.06278655]
[1720704686807,5.67885,3186.9,3185.1,3.13953]
[1720704687022,0.567885,3186.8,3185.3,3.13935]
[1720704687196,3.705835,3186.8,3185.4,2.3635]
[1720704687412,0.567885,3186.8,3185.4,2.3635]
[1720704687740,3.13805,3186.7,3185.4,2.3635]
[1720704687944,3.1379,3186.9,3185.4,2.3635]
[1720704688294,3.13767,3187.1,3185.4,5.50282]
[1720704688505,5.67848,3187.3,3185.5,3.20193368]
[1720704688701,0.3148,3187.8,3185.6,2.3231]
[1720704688702,5.67806,3187.7,3185.6,2.3231]
[1720704688961,0.599286,3187.6,3186.0,3.13865]
[1720704689103,3.13688,3187.9,3186.3,3.13842]
[1720704689445,3.13699,3187.8,3186.3,3.13842]
[1720704689651,3.13699,3187.8,3186.1,5.46166]
[1720704689800,3.13731,3187.5,3186.1,2.3231]
[1720704690714,0.62733,3188.0,3186.4,3.13833]
[1720704690916,6.27342,3188.1,3186.6,3.13812]
[1720704691215,2.541,3188.5,3186.9,3.13777]
[1720704691552,3.13638,3188.4,3186.7,3.13794]
[1720704691753,3.13638,3188.4,3186.8,3.13794]
[1720704692044,3.13666,3188.1,3186.6,5.43677]
[1720704692243,0.313666,3188.0,3186.7,0.5750603]
[1720704692407,0.313666,3188.0,3186.7,3.7130803]
[1720704692608,2.541,3188.4,3186.8,3.13791]
[1720704692859,3.13618,3188.6,3187.0,3.13767]
[1720704693018,3.13634,3188.5,3187.0,3.13767]
[1720704693234,3.13634,3188.5,3186.9,0.06274599]
[1720704693235,3.13634,3188.5,3186.9,3.20057599]
[1720704693421,3.1361,3188.7,3186.9,0.06274599]
[1720704693623,0.56771,3188.6,3187.3,2.4242]
[1720704693838,2.69857245,3189.2,3187.3,2.4242]
[1720704693839,3.13583,3189.0,3187.4,0.06273432]
[1720704694033,5.67664,3189.2,3187.4,0.06273432]
[1720704694265,3.13571,3189.1,3187.5,3.13725]
[1720704694761,3.13588,3188.9,3187.3,2.4242]
[1720704694958,2.8558,3189.2,3187.3,2.4242]
[1720704695264,3.13609,3188.7,3187.3,2.4242]
[1720704695643,3.13628,3188.5,3187.3,2.4242]
[1720704696022,2.541,3188.8,3187.3,2.4242]
[1720704696224,3.68614,3188.7,3187.3,2.4242]
[1720704696430,2.541,3188.8,3187.3,2.4242]
[1720704696627,0.2541,3188.7,3187.5,3.13722]
[1720704696849,0.28558,3189.1,3187.5,3.13722]
[1720704697036,0.28558,3189.1,3187.9,3.13686]
[1720704697261,3.13539,3189.4,3187.9,3.13686]
[1720704697426,3.13523,3189.6,3188.0,3.19946318]
[1720704697625,3.13523,3189.6,3188.0,3.13674]
[1720704697937,3.13529,3189.5,3188.0,3.13674]
[1720704698322,3.13556,3189.3,3187.7,2.4459]
[1720704698561,3.449136,3189.2,3187.8,3.695253]
[1720704698780,3.13509,3189.7,3188.0,3.13669]
[1720704698998,0.3148,3190.1,3188.5,3.13626]
[1720704699198,3.13457,3190.3,3188.7,3.13603]
[1720704699479,2.541,3190.5,3188.3,5.39135]
[1720704699480,3.13505,3189.8,3188.3,5.39135]
[1720704699780,3.13445,3190.4,3188.3,2.2549]
[1720704700077,3.13509,3189.7,3188.3,2.2549]
[1720704700275,3.13529,3189.5,3188.3,2.2549]
[1720704700485,3.13548,3189.3,3188.3,2.2549]
[1720704700650,3.13577,3189.1,3188.3,2.2549]
[1720704700854,3.13599,3188.8,3187.7,2.4057]
[1720704701083,0.313599,3188.7,3187.7,2.4057]
[1720704701552,3.13565,3189.2,3187.7,2.4057]
[1720704701747,3.13579,3189.0,3187.7,2.4057]
[1720704701950,3.13601,3188.8,3187.7,2.4057]
[1720704702492,0.55,3188.9,3187.7,2.4057]
[1720704703036,3.13544,3189.4,3187.8,0.06273518]
[1720704703286,3.13568,3189.1,3187.8,0.56054552]
[1720704703586,0.599124,3189.3,3187.9,3.13685]
[1720704703799,2.541,3189.9,3188.1,3.13666]
[1720704703980,3.13463,3190.2,3188.7,3.13606]
[1720704704157,3.1347,3190.1,3188.5,3.13626]
[1720704704354,3.13506,3189.8,3188.4,2.2592]
[1720704704778,3.13485,3190.0,3188.4,2.2592]
[1720704705010,0.313485,3189.9,3188.5,0.539557]
[1720704705370,0.313485,3189.9,3188.7,2.3071]
[1720704705680,3.13437,3190.5,3189.0,3.13569]
[1720704705862,2.541,3190.9,3189.2,2.3571]
[1720704706190,3.13439,3190.5,3189.3,0.06270254]
[1720704706392,2.541,3190.9,3189.3,0.06270254]
[1720704706706,3.13434,3190.5,3189.2,2.3571]
[1720704706855,0.313434,3190.4,3189.2,2.3571]
[1720704707255,3.13486,3190.0,3189.2,2.3571]
[1720704707681,3.13493,3189.9,3189.2,2.3571]
[1720704707879,6.26991,3189.9,3189.2,2.3571]
[1720704708257,3.13493,3189.9,3189.2,2.3571]
[1720704708457,3.13521,3189.6,3188.3,2.3197]
[1720704708993,3.448493,3189.8,3188.3,2.3197]
[1720704708994,0.313493,3189.8,3188.4,3.13636]
[1720704709197,3.13481,3190.0,3188.4,3.13636]
[1720704709357,3.13492,3189.9,3188.3,2.3197]
[1720704709557,3.68454,3190.3,3188.4,3.13632]
[1720704709804,3.68454,3190.3,3188.4,2.4232]
[1720704709967,3.13465,3190.2,3188.6,3.13614]
[1720704710175,0.626919,3190.1,3188.7,0.313614]
[1720704710372,0.313434,3190.4,3188.8,2.3493]
[1720704710573,0.313434,3190.4,3188.9,3.13579]
[1720704710794,0.64647919,3191.5,3189.1,3.13567]
[1720704710795,3.13394,3190.9,3189.1,3.13567]
[1720704711169,3.13408,3190.8,3189.2,5.42237]
[1720704711493,3.13413,3190.7,3189.2,2.2868]
[1720704711794,0.15803194,3191.3,3189.3,0.0626978]
[1720704711795,3.13388,3191.0,3189.3,0.0626978]
[1720704712101,3.13388,3191.0,3189.2,5.42229]
[1720704712102,3.13402,3190.8,3189.2,5.42237]
[1720704712311,0.313402,3190.7,3189.3,0.542237]
[1720704712600,3.447522,3190.7,3189.3,0.542237]
[1720704712805,3.447522,3190.7,3189.2,2.2868]
[1720704713158,3.13429,3190.6,3189.2,2.2868]
[1720704713613,0.6459566,3192.1,3190.0,2.2924]
[1720704713755,3.13304,3191.8,3190.1,0.06268038]
[1720704713955,3.13304,3191.8,3190.1,3.19730644]
[1720704714162,0.626598,3191.7,3190.4,3.13433]
[1720704714416,0.32814893,3192.4,3190.3,2.341]
[1720704714696,3.13304,3191.8,3190.3,2.341]
[1720704714900,0.3148,3192.3,3190.3,2.341]
[1720704715055,3.13287,3192.0,3190.3,2.341]
[1720704715262,3.13274,3192.1,3190.4,0.06267703]
[1720704715587,3.13274,3192.1,3190.5,0.5538107]
[1720704715588,0.344754,3192.1,3190.5,0.5538107]
[1720704715760,3.13342,3191.4,3190.3,2.341]
[1720704715965,3.13367,3191.2,3190.3,2.341]
[1720704716164,2.4544,3192.0,3189.3,2.4232]
[1720704716165,6.5544,3192.0,3189.3,2.4232]
[1720704716475,3.13476,3190.1,3189.3,2.4232]
[1720704716676,3.13458,3190.3,3189.3,2.4232]
[1720704716873,3.13433,3190.5,3189.3,2.4232]
[1720704716874,0.313458,3190.2,3189.3,2.4232]
[1720704717198,3.13443,3190.4,3189.3,2.4232]
[1720704717400,3.13459,3190.2,3189.3,2.4232]
[1720704717906,3.13477,3190.1,3189.3,2.4232]
[1720704718599,3.1348,3190.0,3189.3,2.4232]
[1720704719262,3.1348,3190.0,3188.7,2.3348]
[1720704719481,3.1351,3189.7,3188.7,2.3348]
[1720704719774,3.13529,3189.5,3188.7,2.3348]
[1720704720264,3.1351,3189.7,3188.7,2.3348]
[1720704720468,3.13519,3189.6,3188.7,2.3348]
[1720704720985,3.44839,3189.9,3188.8,0.06271913]
[1720704720986,0.31348,3189.9,3188.8,0.06271913]
[1720704721189,0.31348,3189.9,3188.7,2.3348]
[1720704721190,3.13515,3189.7,3188.7,2.3348]
[1720704721611,3.13535,3189.5,3188.7,2.3348]
[1720704721899,3.13515,3189.7,3188.1,2.3634]
[1720704721900,3.13551,3189.3,3188.1,2.3634]
[1720704722199,3.13585,3189.0,3188.1,2.3634]
[1720704722507,3.13575,3189.1,3188.1,2.3634]
[1720704722508,0.62716,3188.9,3188.1,2.3634]
[1720704722807,3.13575,3189.1,3188.1,2.3634]
[1720704722965,3.13588,3188.9,3188.1,2.3634]
[1720704723701,3.13607,3188.7,3187.0,2.3308]
[1720704723904,3.13627,3188.5,3187.0,2.2808]
[1720704724266,4.00026,3189.4,3187.0,2.2808]
[1720704724267,0.8648,3189.4,3187.0,2.2808]
[1720704724564,1.08638082,3189.3,3187.1,0.22808]
[1720704724864,3.13638,3188.4,3186.6,0.04486842]
[1720704725063,0.01786441,3188.3,3186.6,0.04486842]
[1720704725292,3.13637,3188.4,3186.9,3.13778]
[1720704725464,0.01786441,3188.5,3186.9,3.13778]
[1720704725660,3.13637,3188.4,3186.7,3.13797]
[1720704725869,3.13637,3188.4,3186.8,0.627607]
[1720704725870,0.64692385,3188.3,3186.8,0.627607]
[1720704726164,0.01786441,3188.2,3185.6,3.13903]
[1720704726479,3.13775,3187.0,3185.3,4.61941]
[1720704726678,3.13748,3187.3,3185.5,3.13922]
[1720704726877,0.313748,3187.2,3185.7,2.4627]
[1720704727066,0.313748,3187.2,3185.7,5.60164]
[1720704727259,3.13702,3187.8,3185.7,5.60164]
[1720704727466,0.62905944,3188.3,3186.4,2.4544]
[1720704727693,3.13706,3187.7,3186.4,2.4544]
[1720704728029,3.13725,3187.5,3186.4,2.4544]
[1720704728195,3.13702,3187.8,3186.5,0.06275528]
[1720704728405,3.15501441,3187.7,3186.4,2.4544]
[1720704728697,3.13731,3187.5,3186.4,2.4544]
[1720704728929,0.313731,3187.4,3186.4,2.4544]
[1720704729140,0.01786441,3188.0,3186.4,2.4544]
[1720704729141,3.13732,3187.5,3186.4,2.4544]
[1720704729316,3.13767,3187.1,3186.4,2.4544]
[1720704729643,0.45094685,3187.9,3185.9,2.2853]
[1720704729644,3.13792,3186.9,3185.9,2.2853]
[1720704729798,3.1381,3186.7,3185.9,2.2853]
[1720704729998,3.13821,3186.6,3185.1,2.3166]
[1720704730197,0.313821,3186.5,3185.2,0.23166]
[1720704730601,3.13834,3186.4,3185.2,0.23166]
[1720704730797,0.313821,3186.5,3185.2,0.23166]
[1720704731035,3.15621441,3186.4,3185.2,0.23166]
[1720704731410,3.13835,3186.4,3185.2,0.23166]
[1720704731612,0.3452171,3186.3,3185.3,0.06278072]
[1720704731798,3.13834,3186.4,3185.2,0.23166]
[1720704732006,5.42428,3187.2,3185.2,0.23166]
[1720704732007,3.1387,3186.1,3185.2,0.23166]
[1720704732205,3.15659441,3186.0,3185.1,2.3166]
[1720704732511,3.13894,3185.8,3185.1,2.3166]
[1720704733097,3.13894,3185.8,3184.2,2.3188]
[1720704733318,3.13929,3185.5,3184.2,2.3188]
[1720704733518,3.1392,3185.6,3184.2,2.3188]
[1720704733799,3.13909,3185.7,3184.3,0.23188]
[1720704734001,3.13895,3185.8,3184.3,0.23188]
[1720704734202,3.1392,3185.6,3184.3,0.23188]
[1720704734608,3.13938,3185.4,3184.3,0.23188]
[1720704735050,3.13942,3185.3,3184.3,0.23188]
[1720704735351,3.13955,3185.2,3184.2,2.3188]
[1720704735846,3.13893,3185.8,3184.3,0.06280067]
[1720704736011,3.13893,3185.8,3184.2,2.3188]
[1720704736012,3.13923,3185.5,3184.2,2.3188]
[1720704736368,3.13859,3186.2,3184.3,0.06279453]
[1720704736516,3.13922,3185.5,3184.4,0.23815945]
[1720704736905,3.13934,3185.4,3184.4,0.23815945]
[1720704737101,3.13953,3185.2,3184.2,2.3188]
[1720704737330,3.13953,3185.2,3183.4,2.3662]
[1720704737532,3.1398,3185.0,3183.4,2.3662]
[1720704737850,3.13895,3185.8,3183.5,0.0628054]
[1720704738031,3.13899,3185.8,3183.9,3.14079]
[1720704738228,3.13899,3185.8,3183.0,4.62161]
[1720704738229,3.13952,3185.2,3184.0,0.628161]
[1720704738449,3.13952,3185.2,3183.6,3.141]
[1720704738450,3.13932,3185.4,3183.7,3.20378122]
[1720704738636,3.13959,3185.2,3183.5,3.14112]
[1720704738800,3.13952,3185.2,3183.5,3.20393128]
[1720704739014,3.13952,3185.2,3183.4,3.20405128]
[1720704739247,3.13963,3185.1,3183.4,3.14125]
[1720704739548,3.767545,3185.1,3183.5,0.314125]
[1720704739723,3.767545,3185.1,3183.6,0.06280802]
[1720704740146,3.13988,3184.9,3183.1,3.20435565]
[1720704740345,3.14007,3184.7,3183.0,1.48]
[1720704740574,3.14027,3184.5,3182.8,6.28187]
[1720704740717,3.1405,3184.2,3182.9,2.928087]
[1720704741042,3.14071,3184.0,3182.9,2.928087]
[1720704741422,3.14071,3184.0,3182.9,2.2999]
[1720704742663,3.14054,3184.2,3182.9,2.2999]
[1720704742960,3.14073,3184.0,3182.9,2.2999]
[1720704743118,3.14084,3183.9,3182.9,2.2999]
[1720704743315,3.141,3183.7,3182.9,2.2999]
[1720704744365,3.14078,3184.0,3182.9,2.2999]
[1720704744665,3.14052,3184.2,3182.9,2.2999]
[1720704744827,0.314052,3184.1,3183.0,0.22999]
[1720704745033,3.1407,3184.0,3183.0,0.22999]
[1720704745272,0.70501755,3184.6,3183.1,0.06282725]
[1720704745273,3.14036,3184.4,3183.1,0.06282725]
[1720704745566,3.14005,3184.7,3183.2,0.06282035]
[1720704745728,3.14022,3184.5,3183.0,0.22999]
[1720704745935,3.14027,3184.5,3183.1,0.567162]
[1720704746170,3.14012,3184.6,3183.2,0.06281797]
[1720704746338,3.14046,3184.3,3183.0,0.22999]
[1720704746558,3.14025,3184.5,3183.0,0.29280974]
[1720704746753,0.3148,3184.8,3183.1,0.06282028]
[1720704746952,3.13997,3184.8,3183.1,0.06282028]
[1720704747149,3.14009,3184.7,3183.2,0.34344203]
[1720704747353,3.14021,3184.5,3183.2,0.34344203]
[1720704747583,3.14021,3184.5,3183.0,0.22999]
[1720704748780,3.14009,3184.7,3183.1,2.40251716]
[1720704749392,3.14012,3184.6,3183.1,2.40251716]
[1720704749540,3.14009,3184.7,3183.1,2.40251716]
[1720704749888,3.7679,3184.8,3183.1,2.40251716]
[1720704750043,3.830784,3184.7,3183.2,0.89157772]
[1720704751156,3.14011,3184.6,3183.2,0.89157772]
[1720704751500,3.14053,3184.2,3183.2,0.89157772]
[1720704751656,3.14053,3184.2,3183.1,2.3397]
[1720704751657,3.1406,3184.1,3183.1,2.3397]
[1720704752051,3.14049,3184.3,3183.1,2.3397]
[1720704752254,3.14015,3184.6,3183.2,0.06282695]
[1720704752486,3.14034,3184.4,3183.3,0.2402527]
[1720704753796,0.628009,3184.6,3183.1,2.3397]
[1720704754006,3.1406,3184.1,3183.1,2.3397]
[1720704754213,0.55,3184.5,3183.1,2.3397]
[1720704754214,3.14031,3184.4,3183.1,2.3397]
[1720704754518,0.369031,3184.3,3183.1,2.57367]
[1720704755364,3.509491,3184.3,3183.1,2.57367]
[1720704756290,0.369031,3184.3,3183.1,2.57367]
[1720704756491,1.09811259,3185.1,3183.1,2.63649219]
[1720704756691,5.69076,3185.0,3183.2,3.14148]
[1720704756878,3.13997,3184.8,3183.1,2.57367]
[1720704757064,3.13974,3185.0,3183.2,2.33361191]
[1720704757265,3.13974,3185.0,3183.4,2.2708]
[1720704757498,0.313974,3184.9,3183.5,0.28989229]
[1720704757705,3.13957,3185.2,3183.6,2.2708]
[1720704757865,3.13957,3185.2,3183.7,0.06280928]
[1720704758413,6.27916,3185.2,3183.7,0.06280928]
[1720704758612,0.627916,3185.1,3183.8,0.23336093]
[1720704758906,3.13939,3185.4,3183.8,0.29617025]
[1720704759104,3.13935,3185.4,3183.8,0.29617025]
[1720704759274,3.13935,3185.4,3183.9,2.498]
[1720704759478,2.551,3185.5,3184.0,0.06280436]
[1720704759704,1.08749578,3185.4,3184.1,0.25608044]
[1720704759905,3.13939,3185.4,3184.1,0.25608044]
[1720704760121,3.13952,3185.2,3184.1,0.25608044]
[1720704761194,3.16694541,3185.5,3184.1,0.25608044]
[1720704761464,0.61594541,3185.5,3184.2,0.06280238]
[1720704761665,5.68989,3185.9,3184.3,2.4489]
[1720704761864,1.08737447,3185.8,3184.4,3.2030943]
[1720704762112,2.551,3186.3,3184.6,2.4489]
[1720704762113,5.68946,3186.3,3184.6,2.4489]
[1720704762407,1.65618795,3186.2,3184.7,0.55891]
[1720704762604,4.22589195,3186.1,3184.7,0.55891]
[1720704762807,3.13874,3186.0,3184.7,0.55891]
[1720704763106,1.08725253,3185.9,3184.6,2.4489]
[1720704763404,3.13922,3185.5,3184.6,2.4489]
[1720704763570,3.13952,3185.2,3184.6,2.4489]
[1720704763775,3.13934,3185.4,3184.6,2.4489]
[1720704764197,3.13917,3185.6,3184.6,2.4489]
[1720704764512,3.453137,3185.5,3184.6,2.4489]
[1720704764682,4.54052308,3185.5,3184.6,2.4489]
[1720704764879,1.08738608,3185.4,3184.6,2.4489]
[1720704765306,0.313917,3185.5,3184.6,2.4489]
[1720704765480,2.551,3185.8,3184.6,2.4489]
[1720704765693,1.63737322,3185.7,3184.6,2.4489]
[1720704766002,1.08737322,3185.6,3184.6,2.4489]
[1720704766181,3.13921,3185.6,3184.6,2.4489]
[1720704766377,0.55,3185.7,3184.6,2.4489]
[1720704766378,4.22662313,3185.5,3184.6,2.4489]
[1720704766622,0.42266231,3185.4,3184.6,2.4489]
[1720704766936,2.551,3185.8,3184.6,2.4489]
[1720704767119,0.568946,3186.2,3184.6,2.4489]
[1720704767120,0.568946,3186.2,3184.7,3.14]
[1720704767433,0.568946,3186.2,3184.7,3.20278394]
[1720704767434,1.08725395,3186.1,3184.7,3.20278394]
[1720704767726,3.707486,3186.2,3184.6,2.4489]
[1720704767908,6.258486,3186.2,3184.6,2.4489]
[1720704768110,1.71310869,3186.1,3184.7,0.6216975]
[1720704768429,0.6258486,3186.1,3184.8,2.4296]
[1720704769298,0.6258486,3186.1,3184.8,2.49238571]
[1720704770335,3.7644786,3186.1,3184.8,2.4296]
[1720704770488,3.82905186,3186.0,3184.8,2.4296]
[1720704770683,3.13918,3185.6,3184.8,2.4296]
[1720704771422,5.69003,3185.7,3184.8,2.4296]
[1720704771727,3.13897,3185.8,3184.8,2.4296]
[1720704772392,3.13883,3185.9,3184.8,2.4296]
[1720704772583,3.83574019,3185.8,3184.8,2.4296]
[1720704773709,0.69679019,3185.8,3184.8,2.4296]
[1720704774106,2.70864357,3186.2,3184.8,2.4296]
[1720704774107,2.551,3186.2,3184.8,2.4296]
[1720704774424,1.08727939,3186.1,3184.8,2.4296]
[1720704774607,1.08727939,3186.0,3184.8,2.4296]
[1720704774815,5.68958,3186.2,3184.8,2.4296]
[1720704775015,1.08726766,3186.1,3184.8,2.4296]
[1720704775218,3.13838,3186.4,3185.0,2.3224]
[1720704775513,3.1387,3186.1,3185.0,2.3224]
[1720704775719,1.0872492,3186.0,3185.0,2.3224]
[1720704775881,6.27742,3186.1,3185.0,2.3224]
[1720704776085,3.1387,3186.1,3185.0,2.3224]
[1720704776331,1.40111049,3186.0,3185.0,2.3224]
[1720704776821,0.31387,3186.0,3185.0,2.3224]
[1720704777227,3.13894,3185.8,3185.0,2.3224]
[1720704777586,6.27795,3185.8,3185.0,2.3224]
[1720704777800,3.13894,3185.8,3185.0,2.3224]
[1720704778111,3.452914,3185.7,3185.0,2.3224]